[Event "Titled Tuesday Blitz January 18 2022"]
[White "Karabalis, Harilos"]
[Black "Gracia Alvarez, Gerardo Antonio"]
[WhiteFideId "4621808"]
[BlackFideId "5109124"]
[WhiteElo "2168"]
[BlackElo "2139"]
[Result "0-1"]
[Round "10"]
[TimeControl "180+1"]
[Date "2022.01.18"]
[WhiteClock "0:00:15"]
[BlackClock "0:00:47"]

1. e4 {[%clk 0:02:12]}  c5 {[%clk 0:02:59]} 2. a3 {[%clk 0:02:12]}  g6 {[%clk 0:02:57]} 3. h4 {[%clk 0:02:11]}  h5 {[%clk 0:02:50]} 4. Nc3 {[%clk 0:02:10]}  Bg7 {[%clk 0:02:51]} 5. Bc4 {[%clk 0:02:11]}  e6 {[%clk 0:02:50]} 6. d3 {[%clk 0:02:11]}  Ne7 {[%clk 0:02:50]} 7. Ba2 {[%clk 0:02:11]}  Nbc6 {[%clk 0:02:48]} 8. Nf3 {[%clk 0:02:11]}  d5 {[%clk 0:02:47]} 9. exd5 {[%clk 0:02:10]}  exd5 {[%clk 0:02:48]} 10. Ng5 {[%clk 0:02:09]}  O-O {[%clk 0:02:43]} 11. O-O {[%clk 0:02:08]}  b6 {[%clk 0:02:35]} 12. Re1 {[%clk 0:02:08]}  Bb7 {[%clk 0:02:34]} 13. Bf4 {[%clk 0:02:06]}  Nd4 {[%clk 0:02:31]} 14. Qd2 {[%clk 0:02:04]}  Re8 {[%clk 0:02:18]} 15. Rad1 {[%clk 0:01:40]}  Qd7 {[%clk 0:02:18]} 16. Ne2 {[%clk 0:01:33]}  Nxe2+ {[%clk 0:02:14]} 17. Rxe2 {[%clk 0:01:33]}  Nf5 {[%clk 0:02:07]} 18. Rde1 {[%clk 0:01:29]}  Rxe2 {[%clk 0:02:03]} 19. Rxe2 {[%clk 0:01:29]}  Re8 {[%clk 0:02:03]} 20. c3 {[%clk 0:01:29]}  Nxh4 {[%clk 0:01:55]} 21. Qe1 {[%clk 0:01:19]}  Rxe2 {[%clk 0:01:54]} 22. Qxe2 {[%clk 0:01:20]}  Nf5 {[%clk 0:01:50]} 23. Kf1 {[%clk 0:01:17]}  Qe7 {[%clk 0:01:49]} 24. Qf3 {[%clk 0:01:13]}  Qd7 {[%clk 0:01:32]} 25. Qe2 {[%clk 0:01:08]}  Bf6 {[%clk 0:01:22]} 26. g3 {[%clk 0:01:04]}  Kg7 {[%clk 0:01:21]} 27. f3 {[%clk 0:01:02]}  Qe7 {[%clk 0:01:20]} 28. Qxe7 {[%clk 0:00:57]}  Bxe7 {[%clk 0:01:21]} 29. Kf2 {[%clk 0:00:57]}  Bd6 {[%clk 0:01:09]} 30. Bxd6 {[%clk 0:00:53]}  Nxd6 {[%clk 0:01:10]} 31. Nh3 {[%clk 0:00:50]}  Ne8 {[%clk 0:01:05]} 32. Nf4 {[%clk 0:00:49]}  Nc7 {[%clk 0:01:06]} 33. d4 {[%clk 0:00:49]}  Kf6 {[%clk 0:01:00]} 34. Nd3 {[%clk 0:00:41]}  cxd4 {[%clk 0:00:58]} 35. cxd4 {[%clk 0:00:41]}  Ke6 {[%clk 0:00:53]} 36. Ke3 {[%clk 0:00:41]}  Kd6 {[%clk 0:00:53]} 37. Bb3 {[%clk 0:00:36]}  Ne6 {[%clk 0:00:53]} 38. f4 {[%clk 0:00:32]}  Ng7 {[%clk 0:00:53]} 39. Ne5 {[%clk 0:00:25]}  Nf5+ {[%clk 0:00:53]} 40. Kf2 {[%clk 0:00:16]}  Nxd4 {[%clk 0:00:49]} 41. Bd1 {[%clk 0:00:15]}  Ke7 {[%clk 0:00:47]} 0-1


[Site "https://www.chess.com"]

[Event "Titled Tuesday Blitz January 18 2022"]
[White "Kim, Sergey"]
[Black "Maksimovic, Bojan"]
[WhiteFideId "13700570"]
[BlackFideId "14408120"]
[WhiteElo "2589"]
[BlackElo "2450"]
[Result "0-1"]
[Round "10"]
[TimeControl "180+1"]
[Date "2022.01.18"]
[WhiteClock "0:00:12"]
[BlackClock "0:00:10"]

1. d4 {[%clk 0:03:00]}  Nf6 {[%clk 0:02:59]} 2. c4 {[%clk 0:03:00]}  g6 {[%clk 0:02:59]} 3. Nc3 {[%clk 0:03:00]}  d5 {[%clk 0:02:59]} 4. cxd5 {[%clk 0:02:59]}  Nxd5 {[%clk 0:03:00]} 5. e4 {[%clk 0:02:59]}  Nxc3 {[%clk 0:03:01]} 6. bxc3 {[%clk 0:03:00]}  Bg7 {[%clk 0:03:02]} 7. Bc4 {[%clk 0:03:00]}  O-O {[%clk 0:03:01]} 8. Ne2 {[%clk 0:03:00]}  c5 {[%clk 0:03:01]} 9. O-O {[%clk 0:02:59]}  Nc6 {[%clk 0:03:01]} 10. Be3 {[%clk 0:02:59]}  e6 {[%clk 0:02:58]} 11. Qd2 {[%clk 0:02:58]}  Qc7 {[%clk 0:02:51]} 12. Rac1 {[%clk 0:02:56]}  Rd8 {[%clk 0:02:50]} 13. Bh6 {[%clk 0:02:51]}  e5 {[%clk 0:02:23]} 14. Bxg7 {[%clk 0:02:49]}  Kxg7 {[%clk 0:02:23]} 15. Bd5 {[%clk 0:02:46]}  Ne7 {[%clk 0:02:16]} 16. dxe5 {[%clk 0:02:39]}  Nxd5 {[%clk 0:02:06]} 17. exd5 {[%clk 0:02:38]}  Qxe5 {[%clk 0:02:06]} 18. c4 {[%clk 0:02:38]}  b6 {[%clk 0:02:00]} 19. Rfe1 {[%clk 0:02:31]}  Ba6 {[%clk 0:01:54]} 20. Nf4 {[%clk 0:02:16]}  Qf6 {[%clk 0:01:44]} 21. g3 {[%clk 0:01:58]}  Rac8 {[%clk 0:01:40]} 22. Re3 {[%clk 0:01:55]}  Re8 {[%clk 0:01:36]} 23. h4 {[%clk 0:01:38]}  h5 {[%clk 0:01:24]} 24. Rcc3 {[%clk 0:01:28]}  Rxe3 {[%clk 0:01:21]} 25. Qxe3 {[%clk 0:01:27]}  Qd4 {[%clk 0:01:16]} 26. Qc1 {[%clk 0:01:05]}  Re8 {[%clk 0:01:09]} 27. Rd3 {[%clk 0:01:03]}  Qxc4 {[%clk 0:00:59]} 28. Qb2+ {[%clk 0:01:03]}  Kg8 {[%clk 0:00:59]} 29. d6 {[%clk 0:00:52]}  Bb7 {[%clk 0:00:25]} 30. Qd2 {[%clk 0:00:44]}  Qxa2 {[%clk 0:00:14]} 31. Qd1 {[%clk 0:00:26]}  Qb2 {[%clk 0:00:15]} 32. d7 {[%clk 0:00:23]}  Rd8 {[%clk 0:00:15]} 33. Re3 {[%clk 0:00:22]}  Rxd7 {[%clk 0:00:12]} 34. Re8+ {[%clk 0:00:20]}  Kh7 {[%clk 0:00:12]} 35. Qe1 {[%clk 0:00:15]}  Qd4 {[%clk 0:00:10]} 36. Nxg6 {[%clk 0:00:13]}  fxg6 {[%clk 0:00:08]} 37. Re7+ {[%clk 0:00:12]}  Rxe7 {[%clk 0:00:09]} 38. Qxe7+ {[%clk 0:00:12]}  Qg7 {[%clk 0:00:10]} 0-1


[Site "https://www.chess.com"]

[Event "Titled Tuesday Blitz January 18 2022"]
[White "Klimciauskas, Domantas"]
[Black "Coto Mederos, Michel"]
[WhiteFideId "12802999"]
[BlackFideId "3508528"]
[WhiteElo "2255"]
[BlackElo "2427"]
[Result "1-0"]
[Round "10"]
[TimeControl "180+1"]
[Date "2022.01.18"]
[WhiteClock "0:01:11"]
[BlackClock "0:00:05"]

1. d4 {[%clk 0:03:00]}  d5 {[%clk 0:02:57]} 2. Nf3 {[%clk 0:03:00]}  Nf6 {[%clk 0:02:57]} 3. g3 {[%clk 0:03:00]}  e6 {[%clk 0:02:51]} 4. Bg2 {[%clk 0:03:00]}  c5 {[%clk 0:02:52]} 5. O-O {[%clk 0:03:00]}  Nc6 {[%clk 0:02:52]} 6. c4 {[%clk 0:02:45]}  Be7 {[%clk 0:02:48]} 7. cxd5 {[%clk 0:02:44]}  exd5 {[%clk 0:02:48]} 8. Nc3 {[%clk 0:02:45]}  O-O {[%clk 0:02:45]} 9. dxc5 {[%clk 0:02:44]}  Bxc5 {[%clk 0:02:45]} 10. b3 {[%clk 0:02:44]}  Bg4 {[%clk 0:02:06]} 11. Bb2 {[%clk 0:02:41]}  Re8 {[%clk 0:02:04]} 12. e3 {[%clk 0:02:34]}  a6 {[%clk 0:02:01]} 13. h3 {[%clk 0:02:31]}  Bh5 {[%clk 0:01:56]} 14. Rc1 {[%clk 0:02:25]}  Ba7 {[%clk 0:01:51]} 15. Ne2 {[%clk 0:02:17]}  Rc8 {[%clk 0:01:36]} 16. Nf4 {[%clk 0:02:16]}  Bxf3 {[%clk 0:01:22]} 17. Qxf3 {[%clk 0:02:15]}  Ne4 {[%clk 0:00:48]} 18. Rfd1 {[%clk 0:02:03]}  Qa5 {[%clk 0:00:47]} 19. Qg4 {[%clk 0:01:43]}  g6 {[%clk 0:00:07]} 20. Nxd5 {[%clk 0:01:30]}  f5 {[%clk 0:00:06]} 21. Qh4 {[%clk 0:01:24]}  Qxa2 {[%clk 0:00:06]} 22. Nf6+ {[%clk 0:01:22]}  Nxf6 {[%clk 0:00:05]} 23. Qxf6 {[%clk 0:01:23]}  Re7 {[%clk 0:00:05]} 24. Qh8+ {[%clk 0:01:13]}  Kf7 {[%clk 0:00:05]} 25. Qxh7+ {[%clk 0:01:13]}  Kf8 {[%clk 0:00:04]} 26. Qh8+ {[%clk 0:01:11]}  Kf7 {[%clk 0:00:05]} 27. Qg7+ {[%clk 0:01:11]}  Ke8 {[%clk 0:00:05]} 28. Qg8# {[%clk 0:01:11]} 1-0


[Site "https://www.chess.com"]

[Event "Titled Tuesday Blitz January 18 2022"]
[White "Klukin, Kirill"]
[Black "Maltsevskaya, Aleksandra"]
[WhiteFideId "24199273"]
[BlackFideId "24174041"]
[WhiteElo "2324"]
[BlackElo "2283"]
[Result "1-0"]
[Round "10"]
[TimeControl "180+1"]
[Date "2022.01.18"]
[WhiteClock "0:01:37"]
[BlackClock "0:01:46"]

1. Nf3 {[%clk 0:03:00]}  Nf6 {[%clk 0:02:59]} 2. b3 {[%clk 0:03:01]}  g6 {[%clk 0:03:00]} 3. Bb2 {[%clk 0:03:01]}  Bg7 {[%clk 0:03:01]} 4. e3 {[%clk 0:03:02]}  O-O {[%clk 0:03:01]} 5. Be2 {[%clk 0:03:02]}  d6 {[%clk 0:03:02]} 6. O-O {[%clk 0:03:03]}  Nbd7 {[%clk 0:03:02]} 7. d4 {[%clk 0:03:03]}  e5 {[%clk 0:03:03]} 8. dxe5 {[%clk 0:03:01]}  Ng4 {[%clk 0:03:04]} 9. c4 {[%clk 0:03:01]}  Ngxe5 {[%clk 0:03:04]} 10. Nc3 {[%clk 0:03:02]}  a5 {[%clk 0:03:04]} 11. Qd2 {[%clk 0:02:57]}  Re8 {[%clk 0:03:05]} 12. Rfd1 {[%clk 0:02:57]}  Nxf3+ {[%clk 0:03:01]} 13. Bxf3 {[%clk 0:02:57]}  h5 {[%clk 0:03:01]} 14. Nd5 {[%clk 0:02:51]}  Ne5 {[%clk 0:03:01]} 15. Be2 {[%clk 0:02:52]}  Be6 {[%clk 0:03:01]} 16. Nf4 {[%clk 0:02:44]}  Bf5 {[%clk 0:03:00]} 17. Rac1 {[%clk 0:02:36]}  a4 {[%clk 0:02:59]} 18. b4 {[%clk 0:02:36]}  a3 {[%clk 0:02:57]} 19. Ba1 {[%clk 0:02:36]}  Qg5 {[%clk 0:02:53]} 20. Kh1 {[%clk 0:02:12]}  h4 {[%clk 0:02:45]} 21. h3 {[%clk 0:02:10]}  Be4 {[%clk 0:02:41]} 22. f3 {[%clk 0:02:09]}  Bc6 {[%clk 0:02:37]} 23. b5 {[%clk 0:02:06]}  Bd7 {[%clk 0:02:33]} 24. Nd5 {[%clk 0:02:06]}  Qg3 {[%clk 0:02:22]} 25. Qe1 {[%clk 0:01:46]}  Rac8 {[%clk 0:02:21]} 26. f4 {[%clk 0:01:40]}  c6 {[%clk 0:01:47]} 27. Qxg3 {[%clk 0:01:36]}  hxg3 {[%clk 0:01:46]} 28. Nb6 {[%clk 0:01:37]} 1-0


[Site "https://www.chess.com"]

[Event "Titled Tuesday Blitz January 18 2022"]
[White "Kornyukov, Alexey"]
[Black "Sadykov, Ramil"]
[WhiteFideId "4150457"]
[BlackFideId "24113590"]
[WhiteElo "2303"]
[BlackElo "2300"]
[Result "0-1"]
[Round "10"]
[TimeControl "180+1"]
[Date "2022.01.18"]
[WhiteClock "0:00:13"]
[BlackClock "0:00:27"]

1. d4 {[%clk 0:03:00]}  Nf6 {[%clk 0:02:58]} 2. c4 {[%clk 0:03:00]}  g6 {[%clk 0:02:58]} 3. f3 {[%clk 0:03:00]}  d5 {[%clk 0:02:57]} 4. cxd5 {[%clk 0:03:00]}  Nxd5 {[%clk 0:02:58]} 5. e4 {[%clk 0:03:00]}  Nb6 {[%clk 0:02:58]} 6. Nc3 {[%clk 0:03:00]}  Bg7 {[%clk 0:02:58]} 7. Be3 {[%clk 0:03:01]}  O-O {[%clk 0:02:58]} 8. Qd2 {[%clk 0:03:01]}  Nc6 {[%clk 0:02:59]} 9. O-O-O {[%clk 0:03:01]}  Na5 {[%clk 0:02:58]} 10. b3 {[%clk 0:03:00]}  Nc6 {[%clk 0:02:57]} 11. h4 {[%clk 0:02:53]}  a5 {[%clk 0:02:51]} 12. Bb5 {[%clk 0:02:45]}  e5 {[%clk 0:02:37]} 13. Bxc6 {[%clk 0:02:31]}  bxc6 {[%clk 0:02:38]} 14. h5 {[%clk 0:02:13]}  a4 {[%clk 0:02:07]} 15. hxg6 {[%clk 0:02:11]}  fxg6 {[%clk 0:02:08]} 16. dxe5 {[%clk 0:01:59]}  Qe7 {[%clk 0:02:06]} 17. Bxb6 {[%clk 0:01:05]}  cxb6 {[%clk 0:02:00]} 18. Qd6 {[%clk 0:00:41]}  Qg5+ {[%clk 0:01:52]} 19. Kb1 {[%clk 0:00:27]}  axb3 {[%clk 0:01:49]} 20. axb3 {[%clk 0:00:25]}  Qxe5 {[%clk 0:01:02]} 21. Qxe5 {[%clk 0:00:24]}  Bxe5 {[%clk 0:01:03]} 22. Nge2 {[%clk 0:00:24]}  Be6 {[%clk 0:01:03]} 23. Kc2 {[%clk 0:00:22]}  b5 {[%clk 0:00:55]} 24. Nd4 {[%clk 0:00:21]}  Bf7 {[%clk 0:00:43]} 25. Ra1 {[%clk 0:00:16]}  Bxd4 {[%clk 0:00:40]} 26. Rxa8 {[%clk 0:00:15]}  Rxa8 {[%clk 0:00:41]} 27. Rd1 {[%clk 0:00:16]}  Bg7 {[%clk 0:00:39]} 28. Rd7 {[%clk 0:00:15]}  h5 {[%clk 0:00:37]} 29. f4 {[%clk 0:00:15]}  Ra1 {[%clk 0:00:32]} 30. e5 {[%clk 0:00:14]}  Be6 {[%clk 0:00:29]} 31. Re7 {[%clk 0:00:13]}  Bf5+ {[%clk 0:00:29]} 32. Kb2 {[%clk 0:00:11]}  Rg1 {[%clk 0:00:29]} 33. Nd1 {[%clk 0:00:09]}  Rxd1 {[%clk 0:00:28]} 34. Kc3 {[%clk 0:00:09]}  Rd3+ {[%clk 0:00:28]} 35. Kb4 {[%clk 0:00:09]}  Bf8 {[%clk 0:00:28]} 36. e6 {[%clk 0:00:08]}  Bxe7+ {[%clk 0:00:29]} 37. Ka5 {[%clk 0:00:08]}  Bxe6 {[%clk 0:00:26]} 38. Kb6 {[%clk 0:00:08]}  Rxb3 {[%clk 0:00:26]} 39. g3 {[%clk 0:00:08]}  Rxg3 {[%clk 0:00:25]} 40. Kxc6 {[%clk 0:00:09]}  Bc4 {[%clk 0:00:25]} 41. Kd7 {[%clk 0:00:09]}  Bf8 {[%clk 0:00:25]} 42. Ke8 {[%clk 0:00:09]}  Re3+ {[%clk 0:00:25]} 43. Kd7 {[%clk 0:00:09]}  Re4 {[%clk 0:00:25]} 44. f5 {[%clk 0:00:09]}  gxf5 {[%clk 0:00:26]} 45. Kd8 {[%clk 0:00:10]}  h4 {[%clk 0:00:26]} 46. Kd7 {[%clk 0:00:10]}  h3 {[%clk 0:00:27]} 47. Kc7 {[%clk 0:00:11]}  h2 {[%clk 0:00:28]} 48. Kb6 {[%clk 0:00:11]}  h1=Q {[%clk 0:00:29]} 49. Ka5 {[%clk 0:00:12]}  Qa1+ {[%clk 0:00:28]} 50. Kb6 {[%clk 0:00:12]}  Re6+ {[%clk 0:00:29]} 51. Kc7 {[%clk 0:00:12]}  Qa7+ {[%clk 0:00:29]} 52. Kd8 {[%clk 0:00:13]}  Re8+ {[%clk 0:00:26]} 53. Kxe8 {[%clk 0:00:13]}  Qe7# {[%clk 0:00:27]} 0-1


[Site "https://www.chess.com"]

[Event "Titled Tuesday Blitz January 18 2022"]
[White "Koziorowicz, Michal"]
[Black "Golizadeh, Asghar"]
[WhiteFideId "21809194"]
[BlackFideId "12505269"]
[WhiteElo "2166"]
[BlackElo "2403"]
[Result "1-0"]
[Round "10"]
[TimeControl "180+1"]
[Date "2022.01.18"]
[WhiteClock "0:00:20"]
[BlackClock "0:00:01"]

1. e4 {[%clk 0:03:00]}  c5 {[%clk 0:02:59]} 2. Nf3 {[%clk 0:03:00]}  d6 {[%clk 0:03:00]} 3. Bb5+ {[%clk 0:02:59]}  Nd7 {[%clk 0:03:00]} 4. d4 {[%clk 0:02:58]}  cxd4 {[%clk 0:03:01]} 5. Qxd4 {[%clk 0:02:59]}  a6 {[%clk 0:03:01]} 6. Bxd7+ {[%clk 0:02:59]}  Bxd7 {[%clk 0:03:02]} 7. O-O {[%clk 0:02:59]}  e5 {[%clk 0:03:02]} 8. Qd3 {[%clk 0:02:58]}  h6 {[%clk 0:03:02]} 9. c4 {[%clk 0:02:58]}  Nf6 {[%clk 0:03:01]} 10. Nc3 {[%clk 0:02:58]}  Be7 {[%clk 0:03:01]} 11. Be3 {[%clk 0:02:58]}  Rc8 {[%clk 0:03:02]} 12. b3 {[%clk 0:02:58]}  O-O {[%clk 0:03:01]} 13. Rac1 {[%clk 0:02:57]}  Bc6 {[%clk 0:02:50]} 14. Rfd1 {[%clk 0:02:56]}  b5 {[%clk 0:02:42]} 15. Nd5 {[%clk 0:02:47]}  Nxd5 {[%clk 0:02:37]} 16. cxd5 {[%clk 0:02:46]}  Bd7 {[%clk 0:02:37]} 17. Rxc8 {[%clk 0:02:42]}  Qxc8 {[%clk 0:02:38]} 18. Rc1 {[%clk 0:02:42]}  Qb7 {[%clk 0:02:38]} 19. Nd2 {[%clk 0:02:37]}  Rc8 {[%clk 0:02:32]} 20. Rc3 {[%clk 0:02:34]}  Rxc3 {[%clk 0:02:21]} 21. Qxc3 {[%clk 0:02:33]}  f5 {[%clk 0:02:22]} 22. f3 {[%clk 0:02:31]}  fxe4 {[%clk 0:02:14]} 23. fxe4 {[%clk 0:02:32]}  Bd8 {[%clk 0:02:08]} 24. Kf1 {[%clk 0:02:25]}  Be8 {[%clk 0:02:07]} 25. Ke2 {[%clk 0:02:20]}  Qd7 {[%clk 0:02:01]} 26. h3 {[%clk 0:02:14]}  Bh5+ {[%clk 0:01:43]} 27. Kd3 {[%clk 0:02:14]}  Be8 {[%clk 0:01:44]} 28. Nf3 {[%clk 0:02:01]}  g5 {[%clk 0:01:32]} 29. Nd2 {[%clk 0:02:00]}  Qb7 {[%clk 0:01:31]} 30. Nf3 {[%clk 0:01:53]}  Bd7 {[%clk 0:01:27]} 31. Qc1 {[%clk 0:01:51]}  b4 {[%clk 0:01:18]} 32. Nd2 {[%clk 0:01:51]}  Bb5+ {[%clk 0:01:17]} 33. Nc4 {[%clk 0:01:52]}  Qf7 {[%clk 0:01:16]} 34. Qd1 {[%clk 0:01:49]}  Qg6 {[%clk 0:00:59]} 35. Qf3 {[%clk 0:01:48]}  Be7 {[%clk 0:00:52]} 36. Qf5 {[%clk 0:01:48]}  Qxf5 {[%clk 0:00:47]} 37. exf5 {[%clk 0:01:49]}  Kf8 {[%clk 0:00:38]} 38. Ke4 {[%clk 0:01:47]}  Ke8 {[%clk 0:00:27]} 39. Bd2 {[%clk 0:01:43]}  Bxc4 {[%clk 0:00:27]} 40. bxc4 {[%clk 0:01:44]}  a5 {[%clk 0:00:27]} 41. Be3 {[%clk 0:01:28]}  Kd7 {[%clk 0:00:27]} 42. Bb6 {[%clk 0:01:27]}  Bd8 {[%clk 0:00:26]} 43. Bxd8 {[%clk 0:00:52]}  Kxd8 {[%clk 0:00:27]} 44. c5 {[%clk 0:00:52]}  a4 {[%clk 0:00:28]} 45. f6 {[%clk 0:00:47]}  b3 {[%clk 0:00:25]} 46. axb3 {[%clk 0:00:39]}  a3 {[%clk 0:00:06]} 47. c6 {[%clk 0:00:26]}  a2 {[%clk 0:00:06]} 48. f7 {[%clk 0:00:25]}  Ke7 {[%clk 0:00:04]} 49. c7 {[%clk 0:00:25]}  a1=Q {[%clk 0:00:04]} 50. f8=Q+ {[%clk 0:00:25]}  Kxf8 {[%clk 0:00:03]} 51. c8=Q+ {[%clk 0:00:26]}  Kf7 {[%clk 0:00:04]} 52. Qe6+ {[%clk 0:00:26]}  Kg7 {[%clk 0:00:05]} 53. Qe7+ {[%clk 0:00:26]}  Kg8 {[%clk 0:00:04]} 54. Kf5 {[%clk 0:00:24]}  Qf1+ {[%clk 0:00:02]} 55. Kg6 {[%clk 0:00:21]}  Qd3+ {[%clk 0:00:01]} 56. Kxh6 {[%clk 0:00:20]} 1-0


[Site "https://www.chess.com"]

[Event "Titled Tuesday Blitz January 18 2022"]
[White "Kucuksari, Kaan"]
[Black "Pranav, V"]
[WhiteFideId "6380166"]
[BlackFideId "25060783"]
[WhiteElo "2305"]
[BlackElo "2349"]
[Result "0-1"]
[Round "10"]
[TimeControl "180+1"]
[Date "2022.01.18"]
[WhiteClock "0:00:02"]
[BlackClock "0:01:03"]

1. d4 {[%clk 0:02:56]}  Nf6 {[%clk 0:03:00]} 2. c4 {[%clk 0:02:57]}  e6 {[%clk 0:02:59]} 3. g3 {[%clk 0:02:57]}  c5 {[%clk 0:02:57]} 4. d5 {[%clk 0:02:57]}  exd5 {[%clk 0:02:57]} 5. cxd5 {[%clk 0:02:58]}  d6 {[%clk 0:02:57]} 6. Nc3 {[%clk 0:02:58]}  a6 {[%clk 0:02:56]} 7. a4 {[%clk 0:02:55]}  Be7 {[%clk 0:02:57]} 8. Bg2 {[%clk 0:02:55]}  O-O {[%clk 0:02:57]} 9. Nf3 {[%clk 0:02:56]}  Nbd7 {[%clk 0:02:58]} 10. O-O {[%clk 0:02:57]}  Rb8 {[%clk 0:02:59]} 11. Qd3 {[%clk 0:02:12]}  Re8 {[%clk 0:02:51]} 12. Bf4 {[%clk 0:02:11]}  Bf8 {[%clk 0:02:51]} 13. Rab1 {[%clk 0:02:03]}  g6 {[%clk 0:02:45]} 14. b4 {[%clk 0:02:02]}  cxb4 {[%clk 0:02:41]} 15. Rxb4 {[%clk 0:02:02]}  Nc5 {[%clk 0:02:42]} 16. Qd2 {[%clk 0:01:49]}  Bf5 {[%clk 0:02:26]} 17. Nd4 {[%clk 0:01:40]}  Nfe4 {[%clk 0:02:22]} 18. Nxe4 {[%clk 0:01:15]}  Bxe4 {[%clk 0:02:22]} 19. Nf3 {[%clk 0:00:59]}  a5 {[%clk 0:02:13]} 20. Rc4 {[%clk 0:00:57]}  b5 {[%clk 0:02:13]} 21. Rxc5 {[%clk 0:00:56]}  dxc5 {[%clk 0:02:10]} 22. Bxb8 {[%clk 0:00:57]}  Qxb8 {[%clk 0:02:11]} 23. Qxa5 {[%clk 0:00:35]}  b4 {[%clk 0:02:10]} 24. Nd2 {[%clk 0:00:31]}  Bxg2 {[%clk 0:01:57]} 25. Kxg2 {[%clk 0:00:32]}  Rxe2 {[%clk 0:01:56]} 26. Nc4 {[%clk 0:00:32]}  Rc2 {[%clk 0:01:45]} 27. Ne3 {[%clk 0:00:30]}  Rc3 {[%clk 0:01:44]} 28. Rb1 {[%clk 0:00:23]}  Qe5 {[%clk 0:01:39]} 29. Re1 {[%clk 0:00:14]}  b3 {[%clk 0:01:33]} 30. Re2 {[%clk 0:00:13]}  b2 {[%clk 0:01:32]} 31. Qb5 {[%clk 0:00:09]}  Qe4+ {[%clk 0:01:31]} 32. f3 {[%clk 0:00:08]}  b1=Q {[%clk 0:01:15]} 33. fxe4 {[%clk 0:00:08]}  Qxe4+ {[%clk 0:01:15]} 34. Kf2 {[%clk 0:00:08]}  Qh1 {[%clk 0:01:16]} 35. a5 {[%clk 0:00:03]}  Qxh2+ {[%clk 0:01:16]} 36. Ke1 {[%clk 0:00:03]}  Qg1+ {[%clk 0:01:13]} 37. Nf1 {[%clk 0:00:01]}  Rc1+ {[%clk 0:01:13]} 38. Kd2 {[%clk 0:00:02]}  Qxf1 {[%clk 0:01:13]} 39. a6 {[%clk 0:00:03]}  Qd1+ {[%clk 0:01:10]} 40. Ke3 {[%clk 0:00:03]}  Qd4+ {[%clk 0:01:07]} 41. Kf3 {[%clk 0:00:03]}  Qxd5+ {[%clk 0:01:07]} 42. Kf2 {[%clk 0:00:03]}  Qf5+ {[%clk 0:01:05]} 43. Ke3 {[%clk 0:00:02]}  Bh6# {[%clk 0:01:03]} 0-1


[Site "https://www.chess.com"]

[Event "Titled Tuesday Blitz January 18 2022"]
[White "Milchev, Nikolay"]
[Black "Seo, Jung Min"]
[WhiteFideId "2906090"]
[BlackFideId "1734687"]
[WhiteElo "2449"]
[BlackElo "2401"]
[Result "0-1"]
[Round "10"]
[TimeControl "180+1"]
[Date "2022.01.18"]
[WhiteClock "0:00:54"]
[BlackClock "0:00:40"]

1. Nf3 {[%clk 0:03:00]}  Nf6 {[%clk 0:03:00]} 2. c4 {[%clk 0:03:01]}  e6 {[%clk 0:02:59]} 3. g3 {[%clk 0:03:01]}  b6 {[%clk 0:02:58]} 4. Bg2 {[%clk 0:03:02]}  Bb7 {[%clk 0:02:58]} 5. O-O {[%clk 0:03:02]}  c5 {[%clk 0:02:54]} 6. Nc3 {[%clk 0:03:02]}  Be7 {[%clk 0:02:53]} 7. e3 {[%clk 0:03:03]}  O-O {[%clk 0:02:53]} 8. Qe2 {[%clk 0:03:02]}  Nc6 {[%clk 0:02:45]} 9. b3 {[%clk 0:03:02]}  d6 {[%clk 0:02:45]} 10. Bb2 {[%clk 0:03:02]}  Qc7 {[%clk 0:02:46]} 11. Rac1 {[%clk 0:03:01]}  Rad8 {[%clk 0:02:45]} 12. Rfd1 {[%clk 0:03:01]}  Qb8 {[%clk 0:02:46]} 13. d4 {[%clk 0:03:02]}  cxd4 {[%clk 0:02:40]} 14. exd4 {[%clk 0:03:02]}  d5 {[%clk 0:02:39]} 15. cxd5 {[%clk 0:03:01]}  Nxd5 {[%clk 0:02:36]} 16. Nxd5 {[%clk 0:03:01]}  Rxd5 {[%clk 0:02:36]} 17. Ne5 {[%clk 0:03:00]}  Nxe5 {[%clk 0:02:31]} 18. Bxd5 {[%clk 0:02:57]}  Bxd5 {[%clk 0:02:31]} 19. dxe5 {[%clk 0:02:57]}  Qb7 {[%clk 0:02:31]} 20. Rxd5 {[%clk 0:02:52]}  Qxd5 {[%clk 0:02:19]} 21. Rc7 {[%clk 0:02:52]}  Bc5 {[%clk 0:02:19]} 22. Rxa7 {[%clk 0:02:48]}  Rd8 {[%clk 0:02:19]} 23. Bc3 {[%clk 0:02:34]}  h6 {[%clk 0:02:18]} 24. b4 {[%clk 0:02:33]}  Bf8 {[%clk 0:02:08]} 25. h4 {[%clk 0:02:12]}  Rc8 {[%clk 0:02:00]} 26. Ra3 {[%clk 0:02:03]}  Rc4 {[%clk 0:01:52]} 27. Rb3 {[%clk 0:02:03]}  b5 {[%clk 0:01:45]} 28. Qd2 {[%clk 0:01:54]}  Qf3 {[%clk 0:01:35]} 29. Bd4 {[%clk 0:01:43]}  Qe4 {[%clk 0:01:29]} 30. Bc5 {[%clk 0:01:37]}  Bxc5 {[%clk 0:01:23]} 31. bxc5 {[%clk 0:01:38]}  Rxc5 {[%clk 0:01:21]} 32. Re3 {[%clk 0:01:37]}  Qc6 {[%clk 0:01:12]} 33. Re1 {[%clk 0:01:32]}  Rc2 {[%clk 0:01:03]} 34. Qd8+ {[%clk 0:01:32]}  Kh7 {[%clk 0:01:03]} 35. Qd3+ {[%clk 0:01:29]}  g6 {[%clk 0:01:03]} 36. h5 {[%clk 0:01:15]}  Rxa2 {[%clk 0:01:01]} 37. hxg6+ {[%clk 0:01:15]}  fxg6 {[%clk 0:01:01]} 38. Qd8 {[%clk 0:01:11]}  Ra7 {[%clk 0:00:57]} 39. Rb1 {[%clk 0:01:10]}  Rf7 {[%clk 0:00:51]} 40. Qd4 {[%clk 0:01:03]}  Rb7 {[%clk 0:00:45]} 41. Rb3 {[%clk 0:00:57]}  Rd7 {[%clk 0:00:42]} 42. Qf4 {[%clk 0:00:54]}  Rd1+ {[%clk 0:00:40]} 0-1


[Site "https://www.chess.com"]